bitfinex-derivatives/quotes_BNBF0:USTF0_20250130
["timestamp","ask_amount","ask_price","bid_price","bid_amount"]
[1738199034928,1.11461591,672.69,671.67,1.09745004]
[1738199037832,1.11461591,672.69,671.67,1.39521531]
[1738199038027,1.11461591,672.77,671.75,1.09745004]
[1738199038729,0.27328593,672.76,671.75,1.09745004]
[1738199039033,1.11461591,672.77,671.75,1.09745004]
[1738199039833,0.27328082,672.76,671.75,1.09745004]
[1738199040233,1.11461591,672.77,671.75,1.09745004]
[1738199041035,0.29719006,672.97,671.67,0.29776527]
[1738199041036,1.11461591,672.81,671.74,1.09745004]
[1738199043837,0.29719006,672.97,671.67,0.29776527]
[1738199043838,1.11461591,672.9,671.75,1.09745004]
[1738199046938,0.29719006,672.97,671.67,0.29776527]
[1738199047239,0.27326178,672.96,671.67,0.29776527]
[1738199048932,0.29719006,672.97,671.67,0.29776527]
[1738199049134,0.27324459,672.96,671.67,0.29776527]
[1738199050642,0.29719006,672.97,671.67,0.29776527]
[1738199051641,0.27324064,672.96,671.67,0.29776527]
[1738199054168,0.27324051,672.95,671.67,0.29776527]
[1738199054544,0.27324051,672.95,671.71,1.09745004]
[1738199054743,0.27324051,672.95,671.72,0.2977431]
[1738199055543,0.27324051,672.94,671.72,0.2977431]
[1738199055741,0.27324051,672.93,671.72,0.2977431]
[1738199055940,0.27324051,672.92,671.72,0.2977431]
[1738199056142,0.27324051,672.96,671.72,0.2977431]
[1738199056342,0.27324051,672.95,671.72,0.2977431]
[1738199056543,0.27324051,672.94,671.72,0.2977431]
[1738199056745,0.27324051,672.96,671.72,0.2977431]
[1738199056944,0.27324051,672.96,671.75,1.09745004]
[1738199057645,0.27324051,672.96,671.76,0.29772537]
[1738199061648,0.29719006,672.97,671.76,0.29772537]
[1738199061848,0.27324018,672.96,671.76,0.29772537]
[1738199063350,0.29719006,672.97,671.76,0.29772537]
[1738199063551,0.2732447,672.96,671.76,0.29772537]
[1738199064950,0.29719006,672.97,671.76,0.29772537]
[1738199065149,0.27324502,672.96,671.76,0.29772537]
[1738199065743,0.27324502,672.96,671.76,1.39517541]
[1738199069348,1.11461591,672.85,671.76,0.29772537]
[1738199069546,0.27324502,672.84,671.76,0.29772537]
[1738199070050,0.27329751,672.83,671.76,0.29772537]
[1738199070246,0.27329751,672.82,671.76,0.29772537]
[1738199070447,0.27329751,672.81,671.76,0.29772537]
[1738199070649,0.27329751,672.8,671.76,0.29772537]
[1738199070849,0.27329751,672.79,671.76,0.29772537]
[1738199071054,1.11461591,672.85,671.76,0.29772537]
[1738199071055,0.27329751,672.78,671.76,0.29772537]
[1738199071250,0.27329751,672.84,671.76,0.29772537]
[1738199071453,0.27329751,672.83,671.76,0.29772537]
[1738199071649,0.27329099,672.82,671.76,0.29772537]
[1738199071956,0.27329099,672.81,671.76,0.29772537]
[1738199072157,0.27329099,672.8,671.76,0.29772537]
[1738199072655,1.3879069,672.79,671.76,0.29772537]
[1738199072856,0.27329099,672.78,671.76,0.29772537]
[1738199075454,1.11461591,672.76,671.76,0.29772537]
[1738199075654,0.27329099,672.75,671.76,0.29772537]
[1738199078156,1.11461591,672.76,671.76,0.29772537]
[1738199078351,0.27329276,672.75,671.76,0.29772537]
[1738199078950,0.27329276,672.8,671.76,0.29772537]
[1738199079152,1.11461591,672.81,671.76,0.29772537]
[1738199079153,0.27329276,672.79,671.76,0.29772537]
[1738199079353,0.27329276,672.78,671.76,0.29772537]
[1738199079550,0.27329276,672.8,671.76,0.29772537]
[1738199079753,1.11461591,672.81,671.76,0.29772537]
[1738199079954,0.27329228,672.8,671.76,0.29772537]
[1738199081451,0.27329279,672.79,671.76,0.29772537]
[1738199081651,0.27329279,672.78,671.76,0.29772537]
[1738199081855,0.27329279,672.77,671.76,0.29772537]
[1738199082056,1.11461591,672.83,671.76,0.29772537]
[1738199082057,0.27329279,672.82,671.76,0.29772537]
[1738199082253,0.27329279,672.81,671.76,0.29772537]
[1738199082457,0.27329279,672.8,671.76,0.29772537]
[1738199082658,0.27329279,672.79,671.76,0.29772537]
[1738199082858,0.27329279,672.82,671.76,0.29772537]
[1738199083159,0.27329279,672.81,671.76,0.29772537]
[1738199083461,0.27329279,672.8,671.76,0.29772537]
[1738199083657,0.27329279,672.79,671.76,0.29772537]
[1738199083959,0.27329279,672.78,671.76,0.29772537]
[1738199084160,0.27329279,672.77,671.76,0.29772537]
[1738199084461,0.27329279,672.76,671.76,0.29772537]
[1738199084759,0.27329279,672.75,671.76,0.29772537]
[1738199084960,0.27329279,672.82,671.76,0.29772537]
[1738199085166,1.11461591,672.83,671.76,0.29772537]
[1738199087961,1.41180597,672.97,671.76,0.29772537]
[1738199088262,0.27329718,672.96,671.76,0.29772537]
[1738199091263,1.38791309,672.96,671.76,0.29772537]
[1738199091456,0.27329718,672.95,671.76,0.29772537]
[1738199092863,1.11461591,672.96,671.76,0.29772537]
[1738199093064,0.27330441,672.95,671.76,0.29772537]
[1738199094965,1.11461591,672.93,671.76,0.29772537]
[1738199095166,0.27330441,672.92,671.76,0.29772537]
[1738199097964,1.11461591,672.81,671.76,0.29772537]
[1738199098160,0.27329504,672.8,671.76,0.29772537]
[1738199101267,1.11461591,672.72,671.77,1.09745004]
[1738199103669,1.11461591,672.71,671.88,1.09745004]
[1738199107272,1.11461591,672.78,671.86,1.09745004]
[1738199109577,0.2733033,672.77,671.86,1.09745004]
[1738199109905,1.11461591,672.78,671.86,1.09745004]
[1738199110077,1.11461591,672.78,671.78,1.55255487]
[1738199112978,0.27329733,672.77,671.78,1.55255487]
[1738199113777,1.38791324,672.77,671.78,1.55255487]
[1738199113977,0.27329733,672.76,671.78,1.55255487]
[1738199115578,0.27331819,672.75,671.76,0.29772537]
[1738199115779,0.27331819,672.76,671.76,0.29772537]
[1738199115973,0.27331819,672.75,671.76,0.29772537]
[1738199116176,1.11461591,672.77,671.76,0.29772537]
[1738199116372,1.11461591,672.67,671.77,1.09745004]
[1738199116577,0.27334542,672.66,671.77,1.09745004]
[1738199118576,0.27334542,672.66,671.76,0.29772537]
[1738199118577,1.38796133,672.66,671.76,0.29772537]
[1738199118881,0.27334542,672.65,671.76,0.29772537]
[1738199121678,1.11461591,672.66,671.56,1.09745004]
[1738199121877,0.27338827,672.65,671.56,1.09745004]
[1738199122080,1.38800418,672.65,671.44,1.09745004]
[1738199122278,0.27338827,672.64,671.44,1.09745004]
[1738199123476,0.27338827,672.64,671.45,1.55324784]
[1738199125986,0.27338827,672.7,671.45,1.55324784]
[1738199126198,0.29731377,672.69,671.45,1.55324784]
[1738199126381,0.27338827,672.68,671.45,1.55324784]
[1738199126589,0.2973226,672.67,671.45,1.55324784]
[1738199126789,0.27338827,672.66,671.45,1.55324784]
[1738199126988,0.5707153,672.66,671.45,1.55324784]
[1738199127216,0.27338827,672.65,671.45,1.55324784]
[1738199129191,0.29733587,672.64,671.45,1.55324784]
[1738199129687,0.27344316,672.63,671.45,1.55324784]
[1738199129887,0.57078345,672.63,671.45,1.55324784]
[1738199130089,0.27344316,672.62,671.45,1.55324784]
[1738199132796,0.29734029,672.63,671.45,1.55324784]
[1738199132996,0.27345138,672.62,671.45,1.55324784]
[1738199133499,0.27345138,672.62,670.95,1.09745004]
[1738199134400,0.27345138,672.62,670.96,0.29808036]
[1738199134611,0.27352958,672.61,670.96,0.29808036]
[1738199134794,0.27352958,672.62,670.96,0.29808036]
[1738199134997,0.27352958,672.61,670.96,0.29808036]
[1738199135196,0.27352958,672.6,670.96,0.29808036]
[1738199135398,0.27352958,672.59,670.96,0.29808036]
[1738199135599,0.27352958,672.58,670.96,0.29808036]
[1738199135793,0.27352958,672.62,670.96,0.29808036]
[1738199135993,0.27352958,672.61,670.96,0.29808036]
[1738199136299,0.27354265,672.6,670.97,1.55403394]
[1738199136494,0.29735797,672.59,670.98,0.29807147]
[1738199136704,0.27354265,672.58,670.98,0.29807147]
[1738199137094,0.29736681,672.57,670.98,0.29807147]
[1738199137402,0.27354265,672.56,670.98,0.29807147]
[1738199137898,0.27353472,672.55,670.98,0.29807147]
[1738199138094,0.29738008,672.54,670.98,0.29807147]
[1738199138297,0.27353472,672.53,670.98,0.29807147]
[1738199139297,0.29738892,672.52,670.98,0.29807147]
[1738199139703,0.27353929,672.51,670.98,0.29807147]
[1738199141404,0.27353929,672.5,670.98,0.29807147]
[1738199141597,0.27353929,672.49,670.98,0.29807147]
[1738199141798,0.27353929,672.48,670.98,0.29807147]
[1738199141998,0.27353929,672.51,670.98,0.29807147]
[1738199142199,0.27353929,672.5,670.98,0.29807147]
[1738199142504,0.27353929,672.49,670.98,0.29807147]
[1738199142800,0.27353929,672.48,670.98,0.29807147]
[1738199143007,0.27353929,672.47,670.98,0.29807147]
[1738199143206,0.27353929,672.46,670.98,0.29807147]
[1738199143407,0.27353929,672.45,670.98,0.29807147]
[1738199143609,0.27353929,672.44,670.98,0.29807147]
[1738199143801,0.57096801,672.43,670.98,0.29807147]
[1738199144005,0.27353929,672.42,670.98,0.29807147]
[1738199144503,0.27354118,672.41,670.98,0.29807147]
[1738199144706,0.27354118,672.4,670.98,0.29807147]
[1738199145004,0.27354118,672.39,670.98,0.29807147]
[1738199145202,0.27354118,672.38,670.98,0.29807147]
[1738199145406,0.27354118,672.42,670.98,0.29807147]
[1738199145706,0.29742872,672.43,670.98,0.29807147]
[1738199145707,0.27354118,672.41,670.98,0.29807147]
[1738199145903,0.27354118,672.4,670.98,0.29807147]
[1738199146105,0.27353411,672.39,670.98,0.29807147]
[1738199146305,0.27353411,672.38,670.98,0.29807147]
[1738199146508,0.27353411,672.37,670.98,0.29807147]
[1738199146707,0.27353411,672.42,670.98,0.29807147]
[1738199147008,0.27353411,672.41,670.98,0.29807147]
[1738199147204,0.27353411,672.42,670.98,0.29807147]
[1738199147408,0.27353411,672.41,670.98,0.29807147]
[1738199147604,0.27353411,672.42,670.98,0.29807147]
[1738199147816,0.27353411,672.41,670.98,0.29807147]
[1738199148005,0.27353411,672.4,670.98,0.29807147]
[1738199148309,0.27353411,672.39,670.98,0.29807147]
[1738199148510,0.27353411,672.38,670.98,0.29807147]
[1738199148711,0.27353411,672.37,670.98,0.29807147]
[1738199148912,0.27353411,672.36,670.98,0.29807147]
[1738199149113,0.29742872,672.43,670.98,0.29807147]
[1738199151410,0.2734518,672.42,670.98,0.29807147]
[1738199151615,0.27345256,672.41,670.98,0.29807147]
[1738199151814,0.27345256,672.4,670.98,0.29807147]
[1738199152013,0.27345256,672.39,670.98,0.29807147]
[1738199152215,0.29742872,672.43,670.98,0.29807147]
[1738199152415,0.27340762,672.42,670.98,0.29807147]
[1738199153213,0.27340762,672.42,671.04,1.09745004]
[1738199153413,0.27341009,672.41,671.06,0.29803594]
[1738199153608,0.29742872,672.43,671.06,0.29803594]
[1738199153810,0.27340939,672.42,671.06,0.29803594]
[1738199155017,0.27341228,672.41,671.06,0.29803594]
[1738199155215,0.27341228,672.42,671.06,0.29803594]
[1738199155416,0.27341228,672.41,671.06,0.29803594]
[1738199155616,0.27341228,672.42,671.06,0.29803594]
[1738199155816,0.27341228,672.41,671.06,0.29803594]
[1738199156015,0.27341228,672.4,671.21,1.09745004]
[1738199156213,0.27341228,672.39,671.21,1.09745004]
[1738199156514,0.27341228,672.38,671.21,1.09745004]
[1738199156711,0.27341228,672.42,671.21,1.09745004]
[1738199156953,0.27344138,672.41,671.22,0.29796489]
[1738199157214,0.27344138,672.4,671.22,0.29796489]
[1738199157410,0.27344138,672.39,671.22,0.29796489]
[1738199157615,0.27344138,672.38,671.22,0.29796489]
[1738199157808,0.29742872,672.43,671.22,0.29796489]
[1738199157809,0.27344138,672.42,671.22,0.29796489]
[1738199158016,0.27344138,672.41,671.22,0.29796489]
[1738199158216,0.27344138,672.42,671.22,0.29796489]
[1738199158515,0.27344138,672.41,671.22,0.29796489]
[1738199158715,0.27344138,672.4,671.22,0.29796489]
[1738199158917,0.27344138,672.42,671.22,0.29796489]
[1738199159113,0.27344138,672.41,671.22,0.29796489]
[1738199159317,0.27344138,672.42,671.22,0.29796489]
[1738199159517,0.27344138,672.41,671.22,0.29796489]
[1738199159711,0.27344138,672.4,671.22,0.29796489]
[1738199159912,0.29742872,672.43,671.22,0.29796489]
[1738199160110,0.27345585,672.42,671.22,0.29796489]
[1738199162813,0.2734535,672.41,671.22,0.29796489]
[1738199163118,0.2734535,672.4,671.22,0.29796489]
[1738199163315,0.29742872,672.43,671.22,0.29796489]
[1738199163517,0.27345881,672.42,671.22,0.29796489]
[1738199164616,0.27345917,672.41,671.22,0.29796489]
[1738199164816,0.27345917,672.42,671.22,0.29796489]
[1738199175025,0.27344005,672.41,671.22,0.29796489]
[1738199175226,0.27344005,672.42,671.22,0.29796489]
[1738199175528,0.29742872,672.43,671.22,0.29796489]
[1738199176321,0.27344092,672.42,671.22,0.29796489]
[1738199176927,0.27344092,672.42,671.22,1.39541493]
[1738199177126,0.29742872,672.43,671.22,1.39541493]
[1738199177432,0.27344068,672.42,671.22,1.39541493]
[1738199178526,0.29742872,672.43,671.22,1.39541493]
[1738199178730,1.11461591,672.56,671.22,1.39541493]
[1738199178931,0.2734113,672.55,671.22,1.39541493]
[1738199179930,1.11461591,672.52,671.27,1.09745004]
[1738199180132,0.2734113,672.51,671.28,0.29793826]
[1738199183832,1.11461591,672.57,671.38,1.09745004]
[1738199184030,0.27338995,672.56,671.38,1.09745004]
[1738199184438,0.27338995,672.56,671.39,0.29788945]
[1738199184934,1.11461591,672.57,671.39,0.29788945]
[1738199188042,1.11461591,672.79,671.43,1.09745004]
[1738199188239,0.27330246,672.78,671.43,1.09745004]
[1738199190037,0.27330246,672.78,671.45,0.29786283]
[1738199191745,1.11461591,672.89,671.57,1.09745004]
[1738199191945,0.27327155,672.88,671.57,1.09745004]
[1738199192342,1.11461591,672.89,671.58,0.29780517]
[1738199192639,0.27328307,672.88,671.58,0.29780517]
[1738199194245,0.27328589,672.87,671.58,0.29780517]
[1738199194444,0.62814948,673.15,671.58,0.29780517]
[1738199194445,0.27328589,672.88,671.58,0.29780517]
[1738199194744,0.27328589,672.87,671.58,0.29780517]
[1738199194941,0.27328589,672.86,671.58,0.29780517]
[1738199195138,0.27328589,673.04,671.58,0.29780517]
[1738199195339,0.27328589,673.03,671.58,0.29780517]
[1738199195539,0.27328589,673.02,671.58,0.29780517]
[1738199195738,0.27328589,673.04,671.58,0.29780517]
[1738199195943,0.27328704,673.03,671.58,0.29780517]
[1738199196143,0.27328704,673.02,671.58,0.29780517]
[1738199196343,0.27328704,673.04,671.58,0.29780517]
[1738199196540,0.27328704,673.03,671.58,0.29780517]
[1738199196745,0.27328704,673.02,671.58,0.29780517]
[1738199196944,0.27328704,673.01,671.58,0.29780517]
[1738199197141,0.27328704,673.04,671.58,0.29780517]
[1738199197345,0.27328704,673.03,671.58,0.29780517]
[1738199197547,0.27328704,673.1,671.58,0.29780517]
[1738199197842,0.57042412,673.09,671.58,0.29780517]
[1738199198039,0.57042853,673.08,671.58,0.29780517]
[1738199198239,0.57043295,673.07,671.58,0.29780517]
[1738199198546,0.57043736,673.06,671.58,0.29780517]
[1738199198746,0.27328704,673.05,671.58,0.29780517]
[1738199199240,0.29715032,673.06,671.58,0.29780517]
[1738199199447,0.27328731,673.05,671.58,0.29780517]
[1738199200049,0.27329468,673.04,671.58,0.29780517]
[1738199200243,0.29715032,673.06,671.58,0.29780517]
[1738199200244,0.27329468,673.03,671.58,0.29780517]
[1738199200442,0.27329468,673.02,671.58,0.29780517]
[1738199200641,0.27329468,673.01,671.58,0.29780517]
[1738199200841,0.27329468,673.05,671.58,0.29780517]
[1738199201047,0.27331702,673.04,671.58,0.29780517]
[1738199201242,0.27331702,673.03,671.58,0.29780517]
[1738199201548,0.570485,673.02,671.58,0.29780517]
[1738199201747,0.27331702,673.01,671.58,0.29780517]
[1738199201947,0.29717682,673.0,671.58,0.29780517]
[1738199202166,0.27331702,672.99,671.58,0.29780517]
[1738199202356,0.29718565,672.98,671.58,0.29780517]
[1738199202650,0.27331702,672.97,671.58,0.29780517]
[1738199202841,0.29719448,672.96,671.58,0.29780517]
[1738199203045,0.27331702,672.95,671.58,0.29780517]
[1738199203545,0.29719448,672.96,671.58,0.29780517]
[1738199203546,0.27331702,672.94,671.58,0.29780517]
[1738199203844,0.57052475,672.93,671.58,0.29780517]
[1738199204049,0.57052917,672.92,671.58,0.29780517]
[1738199204279,0.29721656,672.91,671.58,0.29780517]
[1738199204443,0.27335359,672.9,671.58,0.29780517]
[1738199204750,0.2972254,672.89,671.58,0.29780517]
[1738199205049,0.27335359,672.88,671.58,0.29780517]
[1738199205250,0.29723423,672.87,671.58,0.29780517]
[1738199205447,0.27335359,672.86,671.58,0.29780517]
[1738199205749,0.29724307,672.85,671.58,0.29780517]
[1738199205951,0.27335516,672.84,671.58,0.29780517]
[1738199206149,0.2972519,672.83,671.58,0.29780517]
[1738199206459,0.27335516,672.82,671.58,0.29780517]
[1738199209153,0.2972519,672.83,671.58,0.29780517]
[1738199209452,0.27335881,672.82,671.58,0.29780517]
[1738199211950,1.11461591,672.8,671.58,0.29780517]
[1738199212152,0.27335881,672.79,671.58,0.29780517]
[1738199214655,0.27335881,672.79,671.61,1.09745004]
[1738199214852,0.27335881,672.78,671.62,0.29778743]
[1738199215057,0.2972519,672.83,671.62,0.29778743]
[1738199215058,0.27335881,672.77,671.62,0.29778743]
[1738199215297,0.27335881,672.76,671.62,0.29778743]
[1738199215555,0.27335881,672.75,671.62,0.29778743]
[1738199215756,0.27335881,672.82,671.62,0.29778743]
[1738199215955,0.27329667,672.81,671.62,0.29778743]
[1738199216159,0.27329667,672.8,671.62,0.29778743]
[1738199216456,0.27329667,672.79,671.62,0.29778743]
[1738199216657,0.27329667,672.82,671.62,0.29778743]
[1738199216857,0.27329667,672.81,671.62,0.29778743]
[1738199217058,0.27329667,672.82,671.62,0.29778743]
[1738199217256,0.27329667,672.81,671.62,0.29778743]
[1738199217465,0.27329667,672.82,671.62,0.29778743]
[1738199217657,0.27329603,672.81,671.62,0.29778743]
[1738199217852,0.27329603,672.82,671.62,0.29778743]
[1738199218051,0.27329603,672.81,671.64,1.09745004]
[1738199218254,0.27329603,672.82,671.64,1.09745004]
[1738199218456,0.27329603,672.81,671.64,1.09745004]
[1738199218656,0.27329603,672.8,671.64,1.09745004]
[1738199218859,0.27329603,672.79,671.64,1.09745004]
[1738199219153,0.27329603,672.78,671.64,1.09745004]
[1738199219358,0.27329603,672.77,671.64,1.09745004]
[1738199219559,0.27329603,672.82,671.64,1.09745004]
[1738199219762,0.27329603,672.81,671.64,1.09745004]
[1738199219953,0.27329603,672.8,671.64,1.09745004]
[1738199220152,0.27329603,672.79,671.64,1.09745004]
[1738199220358,0.27329603,672.79,671.62,0.29778743]
[1738199220359,1.38791194,672.82,671.69,1.09745004]
[1738199220558,0.27329603,672.81,671.69,1.09745004]
[1738199222061,1.11461591,672.82,671.69,1.09745004]
[1738199222259,0.27328253,672.81,671.69,1.09745004]
[1738199223886,1.11461591,672.82,671.69,1.09745004]
[1738199224064,0.2972519,672.83,671.62,0.29778743]
[1738199224065,0.2972519,672.83,671.72,1.09745004]
[1738199224263,0.27327667,672.82,671.72,1.09745004]
[1738199225060,0.2972519,672.83,671.72,1.09745004]
[1738199227562,0.2972519,672.83,671.68,1.09745004]
[1738199228358,0.2972519,672.83,671.69,0.2977564]
[1738199233667,0.2972519,672.83,671.72,1.09745004]
[1738199233863,0.2972519,672.83,671.73,0.29773867]
[1738199243172,0.27326151,672.82,671.73,0.29773867]
[1738199245072,0.2972519,672.83,671.73,0.29773867]
[1738199246473,0.27325854,672.82,671.73,0.29773867]
[1738199246674,0.27325854,672.82,671.8,1.09745004]
[1738199247776,0.2972519,672.83,671.8,1.09745004]
[1738199249679,0.2972519,672.83,671.83,1.09745004]
[1738199251779,1.11461591,672.86,671.83,1.09745004]
[1738199252980,1.11461591,672.91,671.84,1.09745004]
[1738199254880,1.11461591,672.91,671.84,1.39513996]
[1738199256283,1.11461591,673.05,671.88,1.09745004]
[1738199259881,1.11461591,673.1,671.85,1.09745004]
[1738199260084,0.27321172,673.09,671.85,1.39513553]
[1738199263685,0.27321172,673.09,671.85,0.29768549]
[1738199263881,1.11461591,673.1,671.85,0.29768549]
[1738199264082,0.27320681,673.09,671.85,0.29768549]
[1738199266090,1.11461591,673.07,671.87,1.09745004]
[1738199266287,0.27320681,673.06,671.87,1.09745004]
[1738199267589,0.27320681,673.06,671.88,0.2976722]
[1738199269196,0.27321096,673.05,671.88,0.2976722]
[1738199269396,0.27321096,673.04,671.88,0.2976722]
[1738199269588,0.27321096,673.06,671.88,0.2976722]
[1738199269994,0.27321096,673.08,671.88,0.2976722]
[1738199270195,0.27321096,673.07,671.88,0.2976722]
[1738199270396,0.27321096,673.08,671.88,0.2976722]
[1738199270595,0.27321096,673.07,671.88,0.2976722]
[1738199270796,0.27321096,673.08,671.88,0.2976722]
[1738199270995,0.27321096,673.07,671.88,0.2976722]
[1738199271190,0.27321096,673.06,671.88,0.2976722]
[1738199271397,0.27321096,673.08,671.88,0.2976722]
[1738199271696,0.27321096,673.07,671.88,0.2976722]
[1738199271896,0.27321096,673.08,671.88,0.2976722]
[1738199272096,0.27321096,673.07,671.88,0.2976722]
[1738199272399,1.11461591,673.05,671.88,1.39512224]
[1738199272601,0.27321081,673.04,671.88,1.39512224]
[1738199273399,1.11461591,673.05,671.88,1.39512224]
[1738199273600,0.27320569,673.04,671.88,1.39512224]
[1738199274398,0.27320848,673.03,671.88,1.39512224]
[1738199274597,0.27320848,673.04,671.88,1.39512224]
[1738199274900,0.27320848,673.03,671.88,1.39512224]
[1738199275117,0.27320848,673.02,671.88,1.39512224]
[1738199275295,1.11461591,673.05,671.88,1.39512224]
[1738199275296,0.27320848,673.04,671.88,1.39512224]
[1738199275496,0.27320848,673.03,671.88,1.39512224]
[1738199275691,0.27320848,673.02,671.88,1.39512224]
[1738199275897,0.27320848,673.01,671.92,1.09745004]
[1738199279201,1.11461591,672.98,671.93,1.09745004]
[1738199279398,0.27320848,672.97,671.93,1.09745004]
[1738199281701,1.11461591,672.98,671.93,1.09745004]
[1738199283404,1.11461591,672.96,671.97,1.09745004]
[1738199286838,1.11461591,672.97,671.98,1.09745004]
[1738199289106,1.11461591,672.93,672.0,1.09745004]
[1738199292907,1.38782909,672.92,672.01,1.09745004]
[1738199293110,0.27321318,672.91,672.01,1.09745004]
[1738199293610,0.27324154,672.9,672.01,1.09745004]
[1738199293805,1.11461591,672.92,672.01,1.09745004]
[1738199296448,1.11461591,673.18,671.92,1.55222017]
[1738199296605,0.29710177,673.17,671.92,1.55222017]
[1738199299512,1.5523298,673.16,671.92,1.55222017]
[1738199301016,0.29711059,673.15,671.92,1.55222017]
[1738199303853,0.27327324,673.14,671.92,1.55222017]
[1738199304020,0.29711059,673.15,671.92,1.55222017]
[1738199304221,0.27327885,673.14,671.92,1.55222017]
[1738199305916,1.38787342,673.13,671.92,1.55222017]
[1738199306120,0.27325751,673.12,671.92,1.55222017]
[1738199307721,0.27324111,673.11,671.92,1.55222017]
[1738199307918,0.27324111,673.12,671.92,1.55222017]
[1738199308121,0.27324111,673.11,671.92,1.55222017]
[1738199308424,0.27324111,673.1,671.92,1.55222017]
[1738199308623,0.27324111,673.12,671.92,1.55222017]
[1738199308922,0.27324111,673.11,671.92,1.55222017]
[1738199309123,0.27324111,673.12,671.92,1.55222017]
[1738199309919,1.11461591,673.05,671.92,1.55222017]
[1738199310247,0.27324111,673.04,671.92,1.55222017]
[1738199311321,0.27324087,673.03,671.92,1.55222017]
[1738199311525,0.27324087,673.04,671.92,1.55222017]
[1738199311727,0.27324087,673.03,671.92,1.55222017]
[1738199311920,0.27324087,673.04,671.92,1.55222017]
[1738199313440,1.11461591,673.03,671.92,1.55222017]
[1738199313726,0.27324087,673.02,671.92,1.55222017]
[1738199314626,1.11461591,673.03,671.92,1.55222017]
[1738199314926,0.27320288,673.02,671.92,1.55222017]
[1738199316659,1.11461591,673.1,671.92,1.55222017]
[1738199316829,0.27320109,673.09,671.92,1.55222017]
[1738199318424,0.2732011,673.08,671.92,1.55222017]
[1738199318729,0.2732011,673.07,671.92,1.55222017]
[1738199318924,0.2732011,673.09,671.92,1.55222017]
[1738199319330,0.2732011,673.12,671.92,1.55222017]
[1738199321636,0.2732011,673.11,671.92,1.55222017]
[1738199321832,0.2732011,673.14,671.92,1.55222017]
[1738199322032,0.2732011,673.13,671.92,1.55222017]
[1738199322236,0.2732011,673.14,671.92,1.55222017]
[1738199322536,0.29711059,673.15,671.92,1.55222017]
[1738199327842,0.29711059,673.15,671.93,0.29765005]
[1738199340660,0.27315686,673.14,671.93,0.29765005]
[1738199340857,0.27315649,673.13,671.93,0.29765005]
[1738199341060,0.27315649,673.14,671.93,0.29765005]
[1738199341269,0.27315649,673.13,671.93,0.29765005]
[1738199341459,0.27315649,673.14,671.93,0.29765005]
[1738199341660,0.29711059,673.15,671.93,0.29765005]
[1738199341661,0.27315649,673.13,671.93,0.29765005]
[1738199341959,0.27315649,673.12,671.93,0.29765005]
[1738199342360,0.27315649,673.11,671.93,0.29765005]
[1738199342561,0.27313529,673.14,671.93,0.29765005]
[1738199342859,0.27313773,673.13,671.93,0.29765005]
[1738199343054,0.27313773,673.12,671.93,0.29765005]
[1738199343257,0.27313773,673.14,671.93,0.29765005]
[1738199343559,0.27313584,673.13,671.93,0.29765005]
[1738199343757,0.27313584,673.12,671.93,0.29765005]
[1738199343954,0.27313584,673.11,671.99,1.09745004]
[1738199344157,0.29711059,673.15,671.99,1.09745004]
[1738199344359,0.2731374,673.14,672.0,0.29761904]
[1738199347155,0.2731374,673.14,672.04,1.09745004]
[1738199347365,0.2731374,673.14,672.05,0.2975969]
[1738199349663,0.29711059,673.15,672.05,0.2975969]
[1738199350066,0.27313716,673.14,672.05,0.2975969]
[1738199350666,0.27313716,673.14,672.05,1.39504694]
[1738199351766,0.29711059,673.15,672.05,1.39504694]
[1738199353567,0.29711059,673.15,672.07,1.09745004]
[1738199356672,0.29711059,673.15,672.05,0.2975969]
[1738199365775,0.29711059,673.15,672.15,1.09745004]
[1738199368375,0.29711059,673.15,672.13,1.09745004]
[1738199371480,0.29711059,673.15,672.06,1.55177027]
[1738199371481,1.11461591,673.14,672.14,1.09745004]
[1738199375381,1.11461591,673.12,672.17,1.09745004]
[1738199378780,1.11461591,673.13,672.05,0.2975969]
[1738199381681,0.29711059,673.15,672.05,0.2975969]
[1738199381682,1.11461591,673.1,672.05,0.2975969]
[1738199382980,1.11461591,673.1,672.06,1.55198942]
[1738199383883,1.11461591,673.13,672.06,1.55198942]
[1738199386179,0.27315418,673.12,672.06,1.55198942]
[1738199386982,0.27315418,673.14,672.06,1.55198942]
[1738199387284,0.27315418,673.13,672.06,1.55198942]
[1738199387587,0.27315418,673.12,672.06,1.55198942]
[1738199387785,0.27315418,673.11,672.06,1.55198942]
[1738199387985,0.27315418,673.1,672.06,1.55198942]
[1738199388186,0.27315418,673.14,672.06,1.55198942]
[1738199388416,0.27315418,673.13,672.06,1.55198942]
[1738199388584,0.27315418,673.12,672.06,1.55198942]
[1738199388784,0.27315418,673.11,672.06,1.55198942]
[1738199388983,0.27315418,673.1,672.06,1.55198942]
[1738199389187,0.27315418,673.09,672.06,1.55198942]
[1738199389488,0.29711059,673.15,672.06,1.55198942]
[1738199389680,0.27317155,673.14,672.06,1.55198942]
[1738199390387,1.11461591,673.06,672.06,1.55198942]
[1738199391786,0.2731713,673.05,672.06,1.55198942]
[1738199392184,1.11461591,673.06,672.06,1.55198942]
[1738199393186,1.11461591,673.07,672.06,1.55198942]
[1738199396493,1.4117265,673.15,672.06,1.55198942]
[1738199398389,0.27318222,673.14,672.06,1.55198942]
[1738199398689,1.4117265,673.15,672.06,1.55198942]
[1738199402492,0.27315926,673.14,672.06,1.55198942]